bitfinex-derivatives/quotes_SOLF0:USTF0_20241226
["timestamp","ask_amount","ask_price","bid_price","bid_amount"]
[1735175518721,13.56239641,197.34,197.19,5.6947]
[1735175519224,2.5362,197.29,197.22,2.5371]
[1735175519922,5.7759,197.31,197.24,2.5368]
[1735175522026,3.24,197.31,197.25,2.5367]
[1735175522228,2.5358,197.32,197.25,2.5367]
[1735175522626,3.24,197.34,197.25,2.5367]
[1735175523424,2.5359,197.31,197.25,2.5367]
[1735175524525,2.5359,197.31,197.22,4.894]
[1735175524829,3.24,197.34,197.22,4.894]
[1735175525027,13.56239641,197.31,197.22,1.654]
[1735175525328,13.56239641,197.31,197.19,3.1573]
[1735175525930,2.537,197.24,197.19,3.1573]
[1735175527730,3.24,197.27,197.14,18.31919641]
[1735175527932,3.24,197.27,197.15,3.0327]
[1735175529532,2.5371,197.23,197.17,2.5377]
[1735175530831,2.5367,197.26,197.19,2.5375]
[1735175531026,3.24,197.31,197.17,13.56239641]
[1735175532027,2.5364,197.28,197.2,13.56239641]
[1735175532229,2.5364,197.28,197.2,16.80239641]
[1735175532523,2.5362,197.3,197.24,2.5368]
[1735175532833,2.5362,197.3,197.25,3.2534]
[1735175533129,2.5362,197.29,197.25,3.2534]
[1735175533634,16.80239641,197.35,197.14,1.5168]
[1735175533834,2.5365,197.27,197.19,13.56239641]
[1735175534037,13.56239641,197.32,197.18,3.24]
[1735175534334,2.5367,197.26,197.21,2.5372]
[1735175536335,2.5367,197.26,197.22,1.6319]
[1735175536536,2.5359,197.32,197.22,1.6319]
[1735175536731,16.80239641,197.35,197.22,1.6319]
[1735175536936,16.80239641,197.35,197.21,2.5372]
[1735175537529,16.80239641,197.35,197.22,2.5371]
[1735175538243,2.5366,197.27,197.2,2.5373]
[1735175539133,2.537,197.23,197.18,3.24]
[1735175539340,2.537,197.23,197.17,2.5376]
[1735175539741,3.24,197.29,197.15,20.05579641]
[1735175539942,2.5368,197.24,197.18,2.5376]
[1735175541238,2.537,197.23,197.18,2.5376]
[1735175542936,3.24,197.29,197.15,20.05579641]
[1735175544238,2.5367,197.25,197.2,2.5373]
[1735175545245,2.5368,197.24,197.2,2.5373]
[1735175545839,2.5371,197.23,197.18,2.5375]
[1735175546034,2.5371,197.23,197.15,20.05579641]
[1735175547047,3.24,197.29,197.15,16.81579641]
[1735175547048,2.5371,197.22,197.15,16.81579641]
[1735175547240,16.80239641,197.29,197.15,3.2534]
[1735175547846,16.80239641,197.29,197.15,5.7913]
[1735175548145,8.69729962,197.24,197.15,14.48859962]
[1735175548346,2.5373,197.21,197.15,11.95069962]
[1735175548548,2.5373,197.21,197.16,2.5379]
[1735175548847,2.5371,197.23,197.17,8.69729962]
[1735175549047,2.5371,197.23,197.19,2.5375]
[1735175549442,2.5371,197.23,197.17,8.69729962]
[1735175550146,2.5371,197.23,197.15,3.2534]
[1735175550545,2.5371,197.23,197.18,2.5376]
[1735175550751,16.82787765,197.29,197.15,3.2534]
[1735175551150,13.58787765,197.23,197.15,3.2534]
[1735175551349,3.24,197.22,197.13,1.6319]
[1735175551546,3.24,197.22,197.15,2.538]
[1735175551749,3.24,197.26,197.14,13.58787765]
[1735175551947,2.5368,197.25,197.14,13.58787765]
[1735175552546,3.24,197.27,197.14,13.58787765]
[1735175552547,2.5366,197.26,197.14,13.58787765]
[1735175552752,3.24,197.27,197.15,3.24]
[1735175552953,3.24,197.27,197.2,2.5373]
[1735175554452,2.5367,197.25,197.2,2.5373]
[1735175554655,13.58787765,197.32,197.17,13.58787765]
[1735175554842,10.07503383,197.38,197.23,13.58787765]
[1735175555048,10.07503383,197.38,197.24,4.8168]
[1735175555454,13.58787765,197.39,197.24,4.8168]
[1735175555754,3.24,197.38,197.24,4.8168]
[1735175555951,13.58787765,197.39,197.24,4.8168]
[1735175556155,3.24,197.4,197.26,13.58787765]
[1735175557852,2.059511,197.44,197.29,13.58787765]
[1735175558055,2.5349,197.4,197.34,2.5355]
[1735175558246,2.5349,197.4,197.29,16.82787765]
[1735175559459,2.5349,197.4,197.33,2.5357]
[1735175561854,3.24,197.42,197.29,16.82787765]
[1735175561855,5.7746,197.42,197.36,2.5352]
[1735175562057,2.059511,197.44,197.32,13.58787765]
[1735175562260,3.24,197.45,197.33,3.1234]
[1735175562452,3.24,197.45,197.35,13.58787765]
[1735175562655,3.24,197.45,197.38,2.5349]
[1735175563058,2.5341,197.46,197.35,16.82787765]
[1735175563257,2.5339,197.48,197.41,2.5346]
[1735175563460,2.5339,197.48,197.38,13.58787765]
[1735175564457,3.24,197.51,197.38,13.58787765]
[1735175564664,13.58787765,197.47,197.33,4.7432]
[1735175564962,13.58787765,197.47,197.33,7.2788]
[1735175565162,2.5348,197.41,197.33,4.7432]
[1735175566155,2.5348,197.41,197.35,2.5354]
[1735175567065,3.24,197.44,197.35,2.5354]
[1735175567265,2.5348,197.4,197.33,4.7432]
[1735175567466,3.24,197.44,197.33,4.7432]
[1735175568557,2.5348,197.4,197.33,7.2788]
[1735175570665,2.5352,197.37,197.33,4.7432]
[1735175570865,16.82787765,197.44,197.29,13.58787765]
[1735175572068,2.5354,197.35,197.29,16.12397765]
[1735175572269,10.99979155,197.55,197.24,3.2154]
[1735175572270,3.22,197.37,197.26,13.58787765]
[1735175572467,3.22,197.36,197.26,13.58787765]
[1735175573860,3.22,197.36,197.25,2.5367]
[1735175574067,3.22,197.36,197.24,3.2154]
[1735175574971,3.22,197.36,197.24,5.7522]
[1735175575669,2.5361,197.31,197.24,5.7522]
[1735175577871,3.22,197.36,197.24,5.7522]
[1735175578071,3.22,197.36,197.24,3.2154]
[1735175579474,13.58787765,197.38,197.24,3.2154]
[1735175579775,3.22,197.35,197.24,3.2154]
[1735175580271,3.22,197.38,197.26,13.58787765]
[1735175581075,2.5357,197.34,197.27,2.5363]
[1735175583073,16.80787765,197.38,197.24,3.2154]
[1735175583374,13.58787765,197.35,197.24,3.2154]
[1735175584178,8.69073952,197.32,197.24,3.2154]
[1735175584371,11.91073952,197.32,197.24,3.2154]
[1735175584771,11.91073952,197.36,197.27,8.69073952]
[1735175584974,8.69073952,197.38,197.29,8.69073952]
[1735175585177,11.91073952,197.38,197.29,11.22683952]
[1735175586079,2.5356,197.34,197.29,11.22683952]
[1735175586277,2.5356,197.34,197.29,8.69073952]
[1735175586474,11.91073952,197.38,197.29,8.69073952]
[1735175587273,2.5357,197.33,197.29,8.69073952]
[1735175587577,11.91073952,197.38,197.29,8.69073952]
[1735175587777,8.69073952,197.36,197.27,8.69073952]
[1735175588173,8.69073952,197.34,197.25,8.69073952]
[1735175588881,2.5364,197.28,197.25,8.69073952]
[1735175590078,8.69073952,197.34,197.25,8.69073952]
[1735175590381,3.22,197.38,197.24,3.2154]
[1735175590382,2.5365,197.27,197.24,3.2154]
[1735175590582,8.69073952,197.32,197.24,3.2154]
[1735175590779,11.91073952,197.32,197.24,3.2154]
[1735175593285,2.5364,197.28,197.25,8.69073952]
[1735175593783,3.22,197.32,197.27,8.69073952]
[1735175593983,3.22,197.32,197.25,8.69073952]
[1735175595685,2.5363,197.29,197.25,8.69073952]
[1735175596479,3.22,197.32,197.25,8.69073952]
[1735175596783,8.69073952,197.35,197.25,8.69073952]
[1735175597181,8.69073952,197.35,197.25,11.22743952]
[1735175597380,3.22,197.36,197.25,8.69073952]
[1735175597381,8.69073952,197.33,197.25,8.69073952]
[1735175597882,2.5361,197.3,197.25,8.69073952]
[1735175599287,2.536,197.31,197.24,3.2154]
[1735175599585,8.69073952,197.31,197.24,3.2154]
[1735175599780,3.22,197.3,197.24,3.2154]
[1735175601090,2.5366,197.27,197.24,3.2154]
[1735175604288,2.5366,197.27,197.22,1.6405]
[1735175604489,8.69073952,197.27,197.18,3.0342]
[1735175604689,8.69073952,197.27,197.18,11.72493952]
[1735175605184,8.69073952,197.27,197.18,3.0342]
[1735175605185,2.5373,197.21,197.18,3.0342]
[1735175606383,2.5374,197.2,197.18,3.0342]
[1735175606590,8.69073952,197.23,197.14,8.69073952]
[1735175606788,11.91073952,197.23,197.14,8.69073952]
[1735175606992,8.69073952,197.21,197.14,8.69073952]
[1735175607189,8.69073952,197.21,197.13,27.87340061]
[1735175607587,2.5379,197.16,197.13,27.87340061]
[1735175607787,3.22,197.23,197.14,8.69073952]
[1735175607986,3.22,197.23,197.12,3.2915]
[1735175608188,3.22,197.23,197.18,7.11564727]
[1735175608493,7.11564727,197.27,197.2,7.11564727]
[1735175608791,3.22,197.27,197.2,7.11564727]
[1735175609188,2.5372,197.21,197.18,7.11564727]
[1735175609389,7.11564727,197.26,197.18,7.11564727]
[1735175610294,3.22,197.27,197.16,2.5378]
[1735175610488,2.5371,197.22,197.16,2.5378]
[1735175611596,3.22,197.27,197.14,13.655211]
[1735175611794,3.22,197.27,197.14,11.117111]
[1735175612095,11.117111,197.26,197.12,3.2915]
[1735175613194,2.5377,197.18,197.12,3.2915]
[1735175614096,2.5378,197.17,197.12,3.2915]
[1735175616600,2.5382,197.14,197.12,3.2915]
[1735175618792,3.22,197.21,197.12,3.2915]
[1735175618991,3.22,197.25,197.12,3.2915]
[1735175619394,14.337111,197.25,197.12,3.2915]
[1735175620703,11.117111,197.22,197.12,3.2915]
[1735175622005,2.538,197.16,197.12,3.2915]
[1735175622202,3.22,197.19,197.12,3.2915]
[1735175622401,6.83503383,197.33,197.12,3.2915]
[1735175622402,3.22,197.24,197.12,3.2915]
[1735175622598,3.22,197.24,197.16,2.5379]
[1735175622798,11.117111,197.28,197.16,2.5379]
[1735175623001,3.22,197.25,197.16,2.5379]
[1735175623199,2.5372,197.22,197.17,2.5377]
[1735175623399,3.22,197.25,197.17,2.5377]
[1735175623800,2.5371,197.22,197.17,2.5377]
[1735175624801,11.117111,197.28,197.17,2.5377]
[1735175624999,2.5371,197.22,197.17,2.5377]
[1735175626205,3.22,197.27,197.14,11.117111]
[1735175626406,11.117111,197.25,197.12,3.2915]
[1735175627507,2.5378,197.17,197.12,5.8299]
[1735175628407,2.5378,197.17,197.12,3.2915]
[1735175628805,3.22,197.21,197.11,1.5887]
[1735175629008,2.5384,197.13,197.08,6.96835015]
[1735175629206,2.5384,197.13,197.07,5.759]
[1735175629401,2.5384,197.13,197.06,22.82396115]
[1735175629402,3.22,197.21,197.06,22.82396115]
[1735175629602,11.117111,197.19,197.06,11.70685015]
[1735175629804,11.117111,197.16,197.06,11.70685015]
[1735175630008,11.117111,197.16,197.06,10.15055015]
[1735175630204,7.12484123,197.12,197.06,3.1822]
[1735175630407,2.539,197.07,197.03,7.12484123]
[1735175630608,7.12484123,197.1,197.02,27.87340061]
[1735175630808,2.5392,197.06,197.02,27.87340061]
[1735175631610,7.12484123,197.1,197.01,10.37034123]
[1735175631611,2.5393,197.05,197.01,10.37034123]
[1735175632415,2.5393,197.05,197.01,3.2455]
[1735175634414,2.5393,197.05,196.95,3.22]
[1735175634415,2.5401,196.99,196.92,2.5409]
[1735175634611,3.22,197.05,196.9,22.57135046]
[1735175636113,2.5402,196.98,196.91,9.50945015]
[1735175636314,2.5402,196.98,196.91,2.5411]
[1735175639115,3.22,196.99,196.94,2.5407]
[1735175640918,3.22,197.02,196.94,2.5407]
[1735175641517,3.22,197.02,196.92,2.5409]
[1735175641717,3.22,197.02,196.9,1.6663]
[1735175642520,2.5402,196.98,196.91,2.5411]
[1735175643424,3.22,197.02,196.9,1.6663]
[1735175643621,3.22,197.02,196.94,2.5407]
[1735175643922,3.22,197.02,196.91,11.13617351]
[1735175644517,2.5405,196.96,196.9,1.6663]
[1735175646025,3.22,197.02,196.9,1.6663]
[1735175646218,11.13617351,197.0,196.9,1.6663]
[1735175646425,11.13617351,197.0,196.89,1.5861]
[1735175647425,11.13617351,197.0,196.89,4.1274]
[1735175648220,2.5406,196.96,196.89,4.1274]
[1735175648417,5.7606,196.96,196.89,4.1274]
[1735175648821,3.22,196.96,196.9,2.5411]
[1735175649026,3.22,196.96,196.89,1.5861]
[1735175650430,5.7604,196.96,196.9,2.5412]
[1735175650727,3.22,196.96,196.89,1.5861]
[1735175650932,3.22,196.96,196.91,2.541]
[1735175651928,2.5406,196.95,196.89,4.1274]
[1735175652325,3.22,196.96,196.89,1.5861]
[1735175653434,2.5408,196.94,196.89,1.5861]
[1735175655039,3.22,196.96,196.89,1.5861]
[1735175655040,2.5408,196.93,196.89,1.5861]
[1735175655238,3.22,196.96,196.89,1.5861]
[1735175655435,3.22,196.96,196.86,1.6602]
[1735175655932,11.13617351,196.94,196.83,1.6116]
[1735175656940,3.22,196.96,196.83,1.6116]
[1735175657742,2.5412,196.9,196.83,1.6116]
[1735175657940,3.22,196.96,196.83,1.6116]
[1735175658530,2.5414,196.89,196.83,4.1536]
[1735175659440,2.5414,196.89,196.83,2.542]
[1735175659641,3.22,196.9,196.81,1.573]
[1735175661035,2.5419,196.86,196.81,1.573]
[1735175661242,3.22,196.9,196.81,1.573]
[1735175661743,2.5416,196.87,196.81,1.573]
[1735175662042,3.22,196.9,196.81,1.573]
[1735175662245,2.5419,196.85,196.81,1.573]
[1735175663141,3.22,196.9,196.78,3.1597]
[1735175664242,3.22,196.9,196.8,2.5425]
[1735175665350,2.5419,196.85,196.8,2.5425]
[1735175665946,2.5419,196.85,196.74,11.15918635]
[1735175666146,2.5419,196.85,196.75,3.0937]
[1735175666736,3.22,196.9,196.75,3.0937]
[1735175666941,2.5418,196.86,196.77,11.15918635]
[1735175667147,3.22,196.9,196.78,1.6162]
[1735175668050,11.15918635,196.88,196.78,1.6162]
[1735175668250,7.14349066,196.86,196.78,1.6162]
[1735175668451,7.14302205,196.86,196.78,8.75922205]
[1735175669147,2.542,196.85,196.78,11.30192205]
[1735175669552,7.14302205,196.86,196.78,11.30192205]
[1735175670156,2.5422,196.83,196.78,1.6162]
[1735175670756,3.22,196.84,196.78,1.6162]
[1735175670957,2.5423,196.82,196.78,1.6162]
[1735175671254,3.22,196.84,196.78,1.6162]
[1735175671456,2.5424,196.81,196.78,1.6162]
[1735175672759,3.22,196.84,196.78,1.6162]
[1735175672949,3.24,196.88,196.81,7.14302205]
[1735175673652,2.5417,196.87,196.82,2.5422]
[1735175673956,3.24,196.89,196.81,7.14302205]
[1735175674662,2.5419,196.85,196.79,7.14302205]
[1735175674857,7.14302205,196.88,196.79,7.14302205]
[1735175675359,7.14302205,196.91,196.81,7.14302205]
[1735175675663,10.38302205,196.91,196.83,7.14302205]
[1735175675862,12.92422205,196.91,196.85,2.5418]
[1735175676050,10.38302205,196.91,196.85,2.5418]
[1735175676361,7.14302205,196.93,196.85,7.14302205]
[1735175676560,2.5411,196.91,196.86,2.5417]
[1735175676859,2.5411,196.91,196.85,7.14302205]
[1735175677153,7.14302205,196.91,196.83,7.14302205]
[1735175677353,3.24,196.92,196.83,7.14302205]
[1735175677559,2.5412,196.91,196.85,2.5418]
[1735175677760,7.14151628,197.07,196.89,7.14302205]
[1735175677964,7.14302205,196.98,196.89,7.14302205]
[1735175678165,3.22,196.97,196.89,7.14302205]
[1735175678667,7.14302205,197.0,196.91,7.14302205]
[1735175678870,3.22,197.04,196.95,7.14302205]
[1735175679171,3.22,197.04,196.97,2.5403]
[1735175679172,10.36302205,197.04,196.97,2.5403]
[1735175679359,7.14302205,197.0,196.93,7.14302205]
[1735175679669,7.14302205,197.0,196.86,1.6068]
[1735175679670,7.14302205,197.0,196.91,7.14302205]
[1735175679863,2.5403,196.97,196.91,7.14302205]
[1735175680169,7.14302205,197.0,196.86,4.8268]
[1735175680170,3.22,196.98,196.87,11.1474146]
[1735175681668,3.22,196.98,196.9,2.5411]
[1735175682664,11.1474146,196.93,196.85,1.6644]
[1735175682870,3.22,196.92,196.82,1.59]
[1735175683572,11.1474146,196.9,196.81,6.99370775]
[1735175683762,3.22,196.92,196.81,6.99370775]
[1735175683962,3.22,196.92,196.8,3.299]
[1735175685365,2.5419,196.85,196.8,3.299]
[1735175686069,2.5421,196.83,196.8,1.6534]
[1735175686374,3.22,196.86,196.72,3.2146]
[1735175686567,2.5425,196.81,196.72,4.86]
[1735175686768,3.22,196.86,196.72,4.86]
[1735175686964,11.1474146,196.84,196.72,4.86]
[1735175687769,2.5426,196.8,196.73,2.5434]
[1735175687964,3.22,196.79,196.73,2.5434]
[1735175688175,3.22,196.79,196.72,4.86]
[1735175688876,5.7626,196.79,196.72,7.4035]
[1735175689571,3.22,196.79,196.72,4.86]
[1735175689874,3.22,196.79,196.73,2.5434]
[1735175690573,2.5426,196.8,196.73,2.5434]
[1735175691672,3.22,196.81,196.72,3.3104]
[1735175691875,2.5426,196.79,196.72,3.3104]
[1735175692076,3.22,196.81,196.72,3.3104]
[1735175692978,2.5426,196.79,196.72,5.8539]
[1735175693178,3.22,196.81,196.72,3.3104]
[1735175693478,5.7625,196.81,196.74,2.5433]
[1735175694068,3.22,196.81,196.72,3.3104]
[1735175694476,14.3674146,196.81,196.72,3.3104]
[1735175694683,2.543,196.77,196.72,3.3104]
[1735175695184,2.543,196.76,196.72,3.3104]
[1735175695875,11.1474146,196.73,196.63,27.97483102]
[1735175696075,11.1474146,196.64,196.6,27.97483102]
[1735175696277,2.5449,196.62,196.6,27.97483102]
[1735175696574,3.22,196.63,196.6,27.97483102]
[1735175697674,2.5448,196.62,196.6,27.97483102]
[1735175697880,3.22,196.63,196.51,11.1474146]
[1735175698280,5.7648,196.63,196.54,2.5458]
[1735175698482,3.22,196.63,196.51,11.1474146]
[1735175699082,3.22,196.63,196.54,2.5458]
[1735175699083,2.5448,196.62,196.54,2.5458]
[1735175699485,3.22,196.63,196.51,11.1474146]
[1735175700477,32.97459997,196.76,196.54,11.1474146]
[1735175700675,3.5,196.75,196.6,11.1474146]
[1735175700878,2.5437,196.71,196.63,2.5447]
[1735175701078,2.5437,196.71,196.61,1.5915]
[1735175701079,11.1474146,196.73,196.64,1.5565]
[1735175701284,11.1474146,196.7,196.61,1.5915]
[1735175701485,3.5,196.69,196.55,1.5823]
[1735175701781,3.5,196.69,196.56,3.148]
[1735175701980,11.1474146,196.67,196.56,3.148]
[1735175702483,2.5452,196.59,196.56,3.148]
[1735175702684,3.5,196.61,196.56,1.5565]
[1735175702983,3.5,196.6,196.56,1.5565]
[1735175703584,3.5,196.6,196.52,1.6431]
[1735175703782,2.5456,196.56,196.52,1.6431]
[1735175703986,3.5,196.6,196.52,1.6431]
[1735175704187,3.5,196.6,196.49,3.0573]
[1735175704489,3.5,196.6,196.5,1.6431]
[1735175705082,2.5454,196.58,196.52,2.5461]
[1735175705279,3.5,196.6,196.52,2.5461]
[1735175705683,3.5,196.61,196.51,11.1474146]
[1735175706385,3.5,196.61,196.5,1.6431]
[1735175708090,6.045,196.61,196.55,2.5457]
[1735175708290,3.5,196.61,196.55,2.5457]
[1735175708786,11.1474146,196.68,196.55,2.5457]
[1735175709087,3.5,196.67,196.55,2.5457]
[1735175709289,3.5,196.67,196.5,1.6431]
[1735175709486,11.1474146,196.63,196.5,1.6431]
[1735175709889,11.1474146,196.66,196.51,11.1474146]
[1735175711093,2.545,196.61,196.55,2.5456]
[1735175711291,11.1474146,196.66,196.55,2.5456]
[1735175711594,2.5449,196.62,196.52,2.5461]
[1735175711797,3.7,196.61,196.5,1.6431]
[1735175712092,2.5454,196.58,196.52,2.5461]
[1735175712286,2.5454,196.58,196.5,1.6431]
[1735175712785,3.7,196.61,196.53,2.5459]
[1735175712991,3.7,196.61,196.5,1.6431]
[1735175714194,2.5453,196.59,196.53,2.546]
[1735175714391,2.5453,196.59,196.5,1.6431]
[1735175714692,2.5454,196.58,196.5,1.6431]
[1735175714893,3.7,196.61,196.5,1.6431]
[1735175715088,3.7,196.61,196.5,12.7905146]
[1735175715295,2.5451,196.6,196.55,2.5456]
[1735175715988,3.7,196.64,196.5,12.7905146]
[1735175716196,11.1474146,196.66,196.53,11.1474146]
[1735175716393,2.5446,196.64,196.56,2.5455]
[1735175716698,2.5446,196.64,196.53,11.1474146]
[1735175717100,2.5449,196.62,196.57,2.5454]
[1735175717399,3.7,196.65,196.53,11.1474146]
[1735175717603,3.7,196.65,196.5,12.7905146]
[1735175717791,11.1474146,196.63,196.5,12.7905146]
[1735175718398,2.5453,196.59,196.54,2.5458]
[1735175718595,2.5453,196.59,196.49,3.0573]
[1735175718596,3.7,196.59,196.49,3.0573]
[1735175719101,2.5461,196.53,196.49,3.0573]
[1735175719400,11.1474146,196.57,196.45,1.5242]
[1735175719796,2.5464,196.51,196.46,2.5469]
[1735175719998,3.7,196.52,196.45,1.5242]
[1735175720399,3.7,196.52,196.43,10.08140775]
[1735175720699,3.7,196.52,196.43,3.0877]
[1735175720700,11.1474146,196.51,196.43,3.0877]
[1735175721100,3.7,196.5,196.43,3.0877]
[1735175722404,3.7,196.5,196.45,2.547]
[1735175722901,11.1474146,196.54,196.43,3.0877]
[1735175723205,11.1474146,196.61,196.46,11.1474146]
[1735175723398,3.7,196.6,196.47,1.5253]
[1735175723601,2.5457,196.56,196.49,2.5464]
[1735175723806,11.1474146,196.58,196.47,1.5253]
[1735175724000,3.7,196.6,196.47,1.5253]
[1735175724404,2.5454,196.58,196.47,1.5253]
[1735175724803,11.1474146,196.64,196.49,11.1474146]
[1735175725006,2.545,196.61,196.55,2.5457]
[1735175725304,3.7,196.63,196.49,11.1474146]
[1735175725499,2.5455,196.57,196.52,2.546]
[1735175726006,2.5459,196.54,196.48,2.5465]
[1735175726200,11.1474146,196.61,196.47,1.5253]
[1735175726602,2.5457,196.55,196.49,2.5464]
[1735175726804,2.5457,196.55,196.47,1.5253]
[1735175727004,3.7,196.57,196.47,1.5253]
[1735175727199,6.2456,196.57,196.47,1.5253]
[1735175727606,11.1474146,196.55,196.42,27.97483102]
[1735175728205,11.1474146,196.55,196.42,20.98112327]
[1735175728505,11.1474146,196.52,196.4,4.8138]
[1735175728705,3.7,196.51,196.4,4.8138]
[1735175729105,2.5467,196.48,196.4,7.3615]
[1735175729305,3.7,196.51,196.4,7.3615]
[1735175729998,2.5469,196.47,196.41,2.5475]
[1735175730409,3.7,196.51,196.4,4.8138]
[1735175731204,11.1474146,196.52,196.4,4.8138]
[1735175731408,3.7,196.52,196.4,4.8138]
[1735175731707,6.2461,196.52,196.46,2.5468]
[1735175732409,2.5461,196.52,196.46,2.5468]
[1735175732612,6.2461,196.52,196.46,2.5468]
[1735175733202,3.7,196.52,196.41,11.1474146]
[1735175734117,6.2462,196.52,196.47,2.5468]
[1735175734615,2.5464,196.5,196.44,2.5471]
[1735175734915,2.5464,196.5,196.4,36.48863102]
[1735175735111,3.7,196.52,196.4,36.48863102]
[1735175735112,2.5465,196.49,196.45,2.547]
[1735175735313,5.0879,196.69,196.42,11.1474146]
[1735175735515,11.1474146,196.6,196.43,0.93563751]
[1735175735714,2.5457,196.56,196.5,2.5463]
[1735175736510,2.5457,196.56,196.51,2.5462]
[1735175736909,2.5457,196.56,196.44,27.97483102]
[1735175736910,2.5457,196.56,196.52,2.5461]
[1735175737726,3.7,196.59,196.52,2.5461]
[1735175737727,2.5455,196.57,196.52,2.5461]
[1735175737921,3.7,196.59,196.53,2.546]
[1735175738114,3.7,196.62,196.48,11.1474146]
[1735175738318,11.1474146,196.63,196.49,4.7262]
[1735175738620,2.5451,196.6,196.49,4.7262]
[1735175738815,14.8474146,196.63,196.49,4.7262]
[1735175739016,14.8474146,196.63,196.57,2.5455]
[1735175739221,14.8474146,196.63,196.49,11.71990775]
[1735175739412,11.1474146,196.6,196.49,11.71990775]
[1735175739613,11.1474146,196.6,196.5,2.5463]
[1735175739816,11.1474146,196.6,196.49,11.71990775]
[1735175740320,11.1474146,196.6,196.49,4.7262]
[1735175740511,11.1474146,196.6,196.51,2.5463]
[1735175741019,2.546,196.54,196.49,7.2726]
[1735175741223,3.58,196.56,196.49,4.7262]
[1735175741723,3.58,196.56,196.46,6.99370775]
[1735175742220,2.546,196.53,196.46,6.99370775]
[1735175742425,3.58,196.56,196.42,29.63123102]
[1735175742923,2.5458,196.55,196.49,2.5465]
[1735175743120,3.58,196.56,196.42,29.63123102]
[1735175743317,2.5462,196.52,196.42,29.63123102]
[1735175743523,3.58,196.56,196.42,1.6564]
[1735175743726,11.1474146,196.54,196.42,1.6564]
[1735175743929,11.07713013,196.67,196.42,1.6564]
[1735175744225,11.1474146,196.63,196.45,11.1474146]
[1735175744531,2.545,196.61,196.52,2.5461]
[1735175744824,39.74010636,196.68,196.51,11.1474146]
[1735175744825,28.59269176,196.68,196.51,11.1474146]
[1735175745020,28.59269176,196.68,196.54,11.1474146]
[1735175745021,31.17269176,196.68,196.54,11.1474146]
[1735175745221,3.58,196.67,196.54,11.1474146]
[1735175745820,2.5446,196.64,196.58,2.5453]
[1735175746018,14.7274146,196.67,196.49,12.7325146]
[1735175746228,21.48290425,196.67,196.5,3.1032]
[1735175746426,21.48290425,196.67,196.53,2.5459]
[1735175747025,21.48290425,196.67,196.52,27.97483102]
[1735175747531,2.5452,196.6,196.53,2.546]
[1735175747728,3.58,196.6,196.53,2.546]
[1735175748030,3.58,196.6,196.5,3.1032]
[1735175748232,6.1252,196.6,196.53,2.546]
[1735175748527,3.58,196.6,196.53,2.546]
[1735175748735,3.58,196.6,196.5,3.1032]
[1735175749430,2.5455,196.57,196.5,5.6496]
[1735175749639,2.5455,196.57,196.5,3.1032]
[1735175750028,2.5454,196.58,196.51,2.5461]
[1735175750430,3.58,196.6,196.51,2.5461]
[1735175751233,2.5457,196.56,196.5,3.1032]
[1735175751433,3.58,196.6,196.45,6.99370775]
[1735175751628,3.58,196.6,196.46,6.99370775]
[1735175751830,2.5459,196.54,196.47,2.5466]
[1735175752328,2.5459,196.54,196.48,2.5466]
[1735175753235,3.58,196.6,196.45,3.156]
[1735175753438,3.58,196.6,196.48,2.5466]
[1735175754035,2.5458,196.55,196.48,2.5466]
[1735175754331,3.58,196.6,196.45,3.156]
[1735175754531,2.5455,196.57,196.51,2.5462]
[1735175754838,3.58,196.6,196.51,2.5462]
[1735175755037,2.5456,196.56,196.51,2.5462]
[1735175755935,6.89817294,196.71,196.45,10.14970775]